bitfinex-derivatives/quotes_BTCF0:USTF0_20260106
["timestamp","ask_amount","ask_price","bid_price","bid_amount"]
[1767741338853,0.09935703,93621.0,93600.0,0.09203529]
[1767741339043,0.01773387,93622.0,93610.0,0.08984183]
[1767741339240,0.11004203,93625.0,93603.0,0.09088]
[1767741340340,0.09935703,93624.0,93603.0,0.101568]
[1767741342750,0.11004303,93621.0,93603.0,0.09088]
[1767741342947,0.09935703,93621.0,93603.0,0.09088]
[1767741344244,0.09935703,93621.0,93604.0,0.010688]
[1767741346051,0.09935703,93624.0,93604.0,0.010688]
[1767741348154,0.11004203,93624.0,93604.0,0.010688]
[1767741348355,0.09935703,93621.0,93603.0,0.09088]
[1767741348948,0.11742534,93625.0,93603.0,0.1188634]
[1767741349754,0.11742534,93625.0,93604.0,0.010688]
[1767741351350,0.11742534,93625.0,93610.0,0.08984183]
[1767741351548,0.11742534,93625.0,93606.0,0.010687]
[1767741352344,0.12811034,93625.0,93604.0,0.0279834]
[1767741352547,0.12811034,93625.0,93603.0,0.101568]
[1767741352743,0.09935703,93624.0,93605.0,0.010687]
[1767741353865,0.09935703,93624.0,93607.0,0.010687]
[1767741354057,0.01806831,93625.0,93610.0,0.08984183]
[1767741354259,0.02014443,93635.0,93621.0,0.010686]
[1767741354759,0.02014443,93635.0,93620.0,0.10052783]
[1767741355160,0.03868608,93635.0,93620.0,0.08984183]
[1767741355860,0.03868608,93635.0,93617.0,0.101566]
[1767741356367,0.03868608,93635.0,93620.0,0.08984183]
[1767741356553,0.03868608,93635.0,93625.0,0.08984183]
[1767741356860,0.047,93647.0,93633.0,0.12001869]
[1767741357155,0.047,93647.0,93637.0,0.08984183]
[1767741357356,0.047,93647.0,93637.0,0.09088]
[1767741357546,0.06511851,93647.0,93637.0,0.09088]
[1767741357862,0.06511851,93647.0,93637.0,0.06951852]
[1767741358864,0.06511851,93647.0,93599.0,0.010688]
[1767741358865,0.010683,93641.0,93620.0,0.010686]
[1767741359157,0.09935703,93629.0,93616.0,0.09088]
[1767741359355,0.08197591,93628.0,93615.0,0.09088]
[1767741359561,0.07129091,93628.0,93615.0,0.09088]
[1767741360060,0.08197591,93628.0,93615.0,0.09088]
[1767741360556,0.07129091,93628.0,93615.0,0.09088]
[1767741360762,0.08984183,93630.0,93615.0,0.09088]
[1767741361556,0.010684,93634.0,93616.0,0.09516331]
[1767741361756,0.010684,93634.0,93622.0,0.09516331]
[1767741361955,0.010684,93634.0,93624.0,0.09516331]
[1767741362158,0.10052583,93634.0,93619.0,0.09516331]
[1767741362356,0.10052583,93634.0,93615.0,0.09088]
[1767741362357,0.08984183,93630.0,93615.0,0.09088]
[1767741363362,0.08984183,93630.0,93617.0,0.010686]
[1767741363666,0.08984183,93630.0,93619.0,0.010686]
[1767741363872,0.08984183,93630.0,93617.0,0.09516331]
[1767741364259,0.08984183,93630.0,93615.0,0.101566]
[1767741364457,0.08984183,93630.0,93616.0,0.09516331]
[1767741366058,0.08984183,93630.0,93609.0,0.010687]
[1767741366263,0.15461453,93630.0,93611.0,0.010687]
[1767741366466,0.08984183,93630.0,93612.0,0.09206478]
[1767741366764,0.08984183,93630.0,93612.0,0.11838561]
[1767741366968,0.08984183,93630.0,93613.0,0.09206478]
[1767741368568,0.10052683,93630.0,93613.0,0.09206478]
[1767741368754,0.010685,93628.0,93613.0,0.09206478]
[1767741369964,0.08984183,93630.0,93613.0,0.09206478]
[1767741370561,0.010685,93631.0,93613.0,0.09206478]
[1767741372870,0.15545347,93642.0,93618.0,0.09206478]
[1767741373075,0.15545347,93642.0,93610.0,0.09088]
[1767741373076,0.010684,93633.0,93619.0,0.11838561]
[1767741373363,0.010684,93636.0,93620.0,0.09206478]
[1767741373565,0.010684,93636.0,93620.0,0.11838561]
[1767741373971,0.010684,93634.0,93620.0,0.11838561]
[1767741374269,0.010684,93640.0,93620.0,0.09206478]
[1767741374973,0.010684,93632.0,93620.0,0.09206478]
[1767741376270,0.010684,93632.0,93610.0,0.09088]
[1767741376271,0.06455612,93638.0,93614.0,0.010686]
[1767741376673,0.06560959,93635.0,93614.0,0.010686]
[1767741377075,0.06560959,93635.0,93615.0,0.09088]
[1767741377276,0.06560959,93635.0,93616.0,0.010686]
[1767741377674,0.010685,93627.0,93615.0,0.09088]
[1767741378275,0.010685,93630.0,93615.0,0.09088]
[1767741379176,0.00939955,93597.0,93574.0,0.09206478]
[1767741379370,0.00939955,93597.0,93579.0,0.10275478]
[1767741379577,0.09088,93598.0,93579.0,0.09206478]
[1767741379875,0.010688,93597.0,93579.0,0.09206478]
[1767741380072,0.010689,93595.0,93579.0,0.09206478]
[1767741380277,0.101568,93598.0,93579.0,0.10275478]
[1767741381179,0.101568,93598.0,93580.0,0.09206478]
[1767741383274,0.010689,93595.0,93580.0,0.09206478]
[1767741384081,0.11563504,93598.0,93580.0,0.09206478]
[1767741384280,0.101568,93598.0,93581.0,0.09206478]
[1767741384670,0.101568,93598.0,93581.0,0.11838561]
[1767741384872,0.09088,93598.0,93584.0,0.09206478]
[1767741385566,0.010688,93597.0,93584.0,0.09206478]
[1767741387175,0.010689,93592.0,93579.0,0.09206478]
[1767741387376,0.010689,93592.0,93581.0,0.00213679]
[1767741387786,0.01325187,93594.0,93581.0,0.00213679]
[1767741388084,0.02394087,93594.0,93581.0,0.00213679]
[1767741388484,0.01325187,93594.0,93581.0,0.00213679]
[1767741388686,0.010689,93589.0,93579.0,0.09206478]
[1767741390580,0.08091731,93586.0,93566.0,0.09088]
[1767741390888,0.0125078,93578.0,93562.0,0.10613234]
[1767741391082,0.0125078,93578.0,93562.0,0.010692]
[1767741391677,0.01234662,93575.0,93558.0,0.09206478]
[1767741391876,0.010692,93569.0,93555.0,0.18945484]
[1767741392184,0.1033077,93574.0,93563.0,0.12001986]
[1767741392185,8.108e-05,93574.0,93563.0,0.12001986]
[1767741392387,0.0124277,93574.0,93555.0,0.0940145]
[1767741392582,8.108e-05,93574.0,93562.0,0.12001986]
[1767741392889,8.108e-05,93574.0,93563.0,0.0940145]
[1767741395380,0.01077208,93574.0,93557.0,0.0940145]
[1767741396083,8.108e-05,93574.0,93558.0,0.12001986]
[1767741396285,8.108e-05,93574.0,93559.0,0.12001986]
[1767741396483,8.108e-05,93574.0,93560.0,0.0940145]
[1767741396684,8.108e-05,93574.0,93561.0,0.0940145]
[1767741397889,0.01077208,93574.0,93561.0,0.12001986]
[1767741398592,0.01077208,93574.0,93561.0,0.0940145]
[1767741398785,8.108e-05,93574.0,93561.0,0.0940145]
[1767741401692,0.09100108,93574.0,93561.0,0.0940145]
[1767741401886,0.09100108,93574.0,93556.0,0.0940145]
[1767741401887,0.10075882,93574.0,93556.0,0.0940145]
[1767741402192,0.00975774,93573.0,93556.0,0.0940145]
[1767741402385,0.00975774,93573.0,93553.0,0.010693]
[1767741402886,0.00975774,93573.0,93553.0,0.1047075]
[1767741403090,0.010692,93568.0,93553.0,0.0940145]
[1767741403794,0.02914562,93568.0,93553.0,0.0940145]
[1767741403994,0.01845362,93568.0,93554.0,0.1047075]
[1767741404194,0.00948749,93570.0,93554.0,0.1047075]
[1767741404386,0.010691,93571.0,93554.0,0.1047075]
[1767741404694,0.02933934,93571.0,93554.0,0.1047075]
[1767741404888,0.010692,93569.0,93554.0,0.0940145]
[1767741405391,0.0090167,93566.0,93548.0,0.0940145]
[1767741405587,0.010692,93563.0,93548.0,0.0940145]
[1767741405787,0.00884598,93565.0,93548.0,0.0940145]
[1767741406389,0.010693,93562.0,93548.0,0.0940145]
[1767741406592,8.108e-05,93565.0,93549.0,0.1047085]
[1767741407699,0.010692,93562.0,93549.0,0.0940145]
[1767741408900,0.09092,93564.0,93549.0,0.0940145]
[1767741410198,0.09092,93564.0,93550.0,0.1047085]
[1767741411797,0.101612,93564.0,93550.0,0.0940145]
[1767741412495,0.010692,93563.0,93550.0,0.0940145]
[1767741413292,0.010693,93561.0,93550.0,0.18945484]
[1767741413486,0.10777286,93564.0,93550.0,0.18945484]
[1767741413688,0.101612,93564.0,93550.0,0.18945484]
[1767741414303,0.09092,93564.0,93551.0,0.0940145]
[1767741414703,0.010692,93567.0,93549.0,0.0940145]
[1767741414902,0.010692,93565.0,93553.0,0.0940145]
[1767741415403,0.09100108,93566.0,93553.0,0.0940145]
[1767741415404,0.09092,93564.0,93556.0,0.0940145]
[1767741415595,0.09092,93564.0,93557.0,0.0940145]
[1767741417301,0.01813478,93571.0,93563.0,0.12001986]
[1767741417500,0.00245797,93584.0,93564.0,0.0940145]
[1767741417501,0.09092,93570.0,93564.0,0.0940145]
[1767741418504,0.09092,93573.0,93564.0,0.0940145]
[1767741420303,0.08614614,93590.0,93576.0,0.09755448]
[1767741420506,0.09092,93589.0,93577.0,0.09755448]
[1767741420805,0.09092,93590.0,93578.0,0.09755448]
[1767741421205,0.101609,93590.0,93578.0,0.09755448]
[1767741421421,0.01069,93583.0,93573.0,0.09475656]
[1767741421608,0.01069,93581.0,93567.0,0.010692]
[1767741421901,0.09092,93590.0,93567.0,0.010692]
[1767741421902,0.00193864,93583.0,93567.0,0.09475656]
[1767741422409,0.02529274,93581.0,93559.0,0.09092]
[1767741422611,0.010691,93577.0,93559.0,0.09092]
[1767741422909,0.010691,93577.0,93561.0,0.010693]
[1767741423108,0.010691,93577.0,93559.0,0.09092]
[1767741424200,0.010691,93577.0,93562.0,0.09475656]
[1767741424597,0.010691,93577.0,93562.0,0.1191005]
[1767741424908,0.010691,93577.0,93563.0,0.09475656]
[1767741425404,0.01069,93579.0,93566.0,0.1191005]
[1767741425910,0.01069,93579.0,93564.0,0.010692]
[1767741426209,0.09505318,93586.0,93559.0,0.09092]
[1767741426210,0.02529274,93587.0,93568.0,0.09475656]
[1767741426607,0.02529274,93583.0,93562.0,0.1297925]
[1767741426906,0.02529274,93587.0,93566.0,0.09475656]
[1767741427500,0.02529274,93584.0,93566.0,0.09475656]
[1767741428702,0.010692,93565.0,93554.0,0.09475656]
[1767741428907,0.09092,93572.0,93555.0,0.09475656]
[1767741429211,0.09092,93572.0,93554.0,0.02434394]
[1767741429212,0.010692,93568.0,93556.0,0.09475656]
[1767741429405,0.010691,93571.0,93557.0,0.09475656]
[1767741430011,0.010692,93569.0,93557.0,0.09475656]
[1767741430408,0.010692,93567.0,93557.0,0.09475656]
[1767741430616,0.0898705,93570.0,93557.0,0.09475656]
[1767741430815,0.010692,93565.0,93557.0,0.09475656]
[1767741431016,0.0898705,93567.0,93557.0,0.09475656]
[1767741431610,0.1005625,93567.0,93557.0,0.09475656]
[1767741432013,0.02529274,93566.0,93546.0,0.09092]
[1767741432213,0.0898705,93560.0,93546.0,0.09092]
[1767741432618,0.0898705,93560.0,93547.0,0.010694]
[1767741432810,0.0898705,93560.0,93549.0,0.010694]
[1767741433010,0.0898705,93560.0,93547.0,0.02434394]
[1767741433614,0.0898705,93560.0,93548.0,0.02434394]
[1767741433815,0.010693,93556.0,93535.0,0.09092]
[1767741434119,0.0898705,93549.0,93532.0,0.09475656]
[1767741434418,0.0898705,93540.0,93532.0,0.09475656]
[1767741434603,0.0898705,93540.0,93514.0,0.710298]
[1767741434604,0.0898705,93540.0,93506.0,0.0001056]
[1767741434810,0.0898705,93540.0,93518.0,0.010697]
[1767741435215,0.0898705,93540.0,93511.0,0.09092]
[1767741435216,0.0898705,93540.0,93520.0,0.010697]
[1767741436006,0.0898705,93540.0,93521.0,0.02434394]
[1767741436614,0.010695,93539.0,93521.0,0.02434394]
[1767741436820,0.010695,93539.0,93522.0,0.02434394]
[1767741437018,0.010695,93539.0,93523.0,0.02434394]
[1767741437618,0.010695,93539.0,93517.0,0.010698]
[1767741437619,0.0898705,93533.0,93517.0,0.09475656]
[1767741437920,0.02529274,93538.0,93518.0,0.02434394]
[1767741438513,0.010695,93536.0,93519.0,0.02434394]
[1767741438722,0.1005655,93540.0,93523.0,0.02434394]
[1767741439217,0.010695,93538.0,93523.0,0.02434394]
[1767741439413,0.010695,93538.0,93519.0,0.02434394]
[1767741439614,0.11516324,93540.0,93519.0,0.02434394]
[1767741439920,0.010695,93538.0,93519.0,0.02434394]
[1767741440220,0.010695,93538.0,93520.0,0.02434394]
[1767741440419,0.010695,93536.0,93520.0,0.02434394]
[1767741440618,0.12034592,93539.0,93520.0,0.02434394]
[1767741440807,0.02529274,93538.0,93519.0,0.09475656]
[1767741441013,0.0898705,93530.0,93518.0,0.02434394]
[1767741441215,0.09092,93533.0,93518.0,0.02434394]
[1767741442319,0.0898705,93530.0,93515.0,0.03504194]
[1767741442625,0.0898705,93525.0,93510.0,0.09092]
[1767741442827,0.0898705,93520.0,93510.0,0.09092]
[1767741443021,0.010696,93527.0,93510.0,0.09092]
[1767741443321,0.09092,93533.0,93506.0,0.0001056]
[1767741443322,0.0898705,93520.0,93506.0,0.0001056]
[1767741443528,0.09505318,93525.0,93507.0,0.02434394]
[1767741443726,0.010697,93526.0,93507.0,0.02434394]
[1767741444122,0.010697,93526.0,93508.0,0.010699]
[1767741444925,0.010697,93526.0,93507.0,0.02434394]
[1767741445128,0.010696,93529.0,93509.0,0.01283684]
[1767741445330,0.010696,93529.0,93510.0,0.02434394]
[1767741447625,0.010697,93525.0,93510.0,0.02434394]
[1767741447928,0.010697,93525.0,93509.0,0.02648278]
[1767741448236,0.0898705,93520.0,93509.0,0.02648278]
[1767741448531,0.010697,93525.0,93509.0,0.02648278]
[1767741448532,0.09096,93523.0,93509.0,0.02648278]
[1767741448721,0.0898705,93520.0,93509.0,0.02648278]
[1767741451121,0.09096,93523.0,93509.0,0.02648278]
[1767741452129,0.09096,93523.0,93514.0,0.04154942]
[1767741452130,0.01818209,93523.0,93514.0,0.04154942]
[1767741452331,0.0898705,93530.0,93515.0,0.03085142]
[1767741452530,0.09096,93525.0,93515.0,0.03085142]
[1767741452932,0.10956341,93525.0,93511.0,0.04154942]
[1767741453235,0.10956341,93525.0,93509.0,0.00213884]
[1767741455233,0.0898705,93520.0,93509.0,0.00213884]
[1767741455932,0.0898705,93520.0,93509.0,0.01283684]
[1767741456937,0.10956341,93525.0,93509.0,0.01283684]
[1767741457235,0.010695,93541.0,93521.0,0.04154842]
[1767741457422,0.010692,93565.0,93531.0,0.010696]
[1767741457423,0.01848648,93540.0,93531.0,0.010696]
[1767741457630,0.01282947,93569.0,93537.0,0.03085142]
[1767741457631,0.09096,93552.0,93537.0,0.03085142]
[1767741457830,0.03198793,93558.0,93538.0,0.03085142]
[1767741458037,0.09096,93559.0,93546.0,0.010694]
[1767741458232,0.09096,93559.0,93542.0,0.09808402]
[1767741458428,0.09096,93559.0,93539.0,0.03085142]
[1767741458630,2e-08,93559.0,93541.0,0.12893544]
[1767741458832,0.09096,93576.0,93560.0,0.12893544]
[1767741459141,0.0898705,93580.0,93562.0,0.010692]
[1767741459332,0.0898705,93580.0,93560.0,0.12893544]
[1767741459333,0.14320278,93584.0,93564.0,0.010692]
[1767741459538,0.09096,93583.0,93564.0,0.010692]
[1767741459734,0.09096,93583.0,93564.0,0.13962744]
[1767741461040,0.09096,93583.0,93564.0,0.12893544]
[1767741461734,0.10165,93583.0,93564.0,0.12893544]
[1767741461937,0.09096,93583.0,93564.0,0.12893544]
[1767741463345,0.01069,93582.0,93560.0,0.12072192]
[1767741463941,0.01069,93582.0,93560.0,0.21880594]
[1767741464134,0.01069,93582.0,93561.0,0.03085142]
[1767741464935,0.01069,93582.0,93561.0,0.12893544]
[1767741465241,0.01069,93582.0,93560.0,0.1005635]
[1767741465242,0.01880573,93584.0,93570.0,0.0898705]
[1767741465432,0.09240912,93597.0,93575.0,0.13962644]
[1767741465634,0.09092,93596.0,93580.0,0.0898705]
[1767741466135,0.09092,93596.0,93580.0,0.12072192]
[1767741466345,0.01856545,93596.0,93582.0,0.04154142]
[1767741466644,0.00213679,93599.0,93585.0,0.03085142]
[1767741467339,0.02079468,93599.0,93585.0,0.03085142]
[1767741467844,0.02079468,93599.0,93584.0,0.09808402]
[1767741468031,0.02079468,93599.0,93581.0,0.03085142]
[1767741468235,0.02079468,93599.0,93578.0,0.18900402]
[1767741469143,0.010688,93598.0,93578.0,0.18900402]
[1767741473137,0.010688,93598.0,93578.0,0.19969502]
[1767741473645,0.010688,93598.0,93578.0,0.23054644]
[1767741473845,0.010688,93598.0,93579.0,0.03085142]
[1767741475047,0.010688,93598.0,93580.0,0.01069]
[1767741475652,0.02079468,93599.0,93580.0,0.01069]
[1767741475838,0.02079468,93599.0,93585.0,0.03085142]
[1767741476044,0.02079468,93599.0,93592.0,0.03085142]
[1767741476253,0.09092,93603.0,93591.0,0.09808402]
[1767741476460,0.1093609,93603.0,93588.0,0.03085142]
[1767741476649,0.1093609,93603.0,93586.0,0.09808402]
[1767741477653,0.1200489,93603.0,93586.0,0.09808402]
[1767741480953,0.1093609,93603.0,93587.0,0.03192679]
[1767741481253,0.0184409,93603.0,93592.0,0.03192679]
[1767741481447,0.09092,93606.0,93592.0,0.03192679]
[1767741481647,0.09092,93606.0,93578.0,0.09092]
[1767741481648,0.09092,93606.0,93594.0,0.03035246]
[1767741481848,0.010687,93611.0,93596.0,0.03035246]
[1767741482043,0.010687,93609.0,93596.0,0.03035246]
[1767741482244,0.010687,93609.0,93595.0,0.09304788]
[1767741482245,0.03202362,93611.0,93588.0,0.13408934]
[1767741482451,0.03202362,93611.0,93589.0,0.12340034]
[1767741482653,0.03202362,93611.0,93590.0,0.03035246]
[1767741483158,0.010687,93607.0,93590.0,0.03035246]
[1767741484755,0.010687,93607.0,93587.0,0.010689]
[1767741484756,0.010687,93606.0,93587.0,0.010689]
[1767741484957,0.010687,93609.0,93591.0,0.03035246]
[1767741485456,0.04271062,93609.0,93590.0,0.09304788]
[1767741485753,0.010687,93607.0,93590.0,0.09304788]
[1767741485963,0.010688,93605.0,93588.0,0.010689]
[1767741486652,0.010688,93605.0,93588.0,0.04104146]
[1767741486959,0.03202362,93609.0,93588.0,0.03035246]
[1767741487159,0.010688,93604.0,93588.0,0.03035246]
[1767741487960,0.010688,93604.0,93589.0,0.03035246]
[1767741489256,0.03202362,93600.0,93580.0,0.03035246]
[1767741489462,0.03202362,93588.0,93569.0,0.09518535]
[1767741489757,0.03202362,93588.0,93547.0,0.13445735]
[1767741489758,0.01069,93580.0,93563.0,0.03035246]
[1767741490064,0.09092,93579.0,93563.0,0.03035246]
[1767741490565,0.010691,93578.0,93563.0,0.03035246]
[1767741491558,0.09092,93579.0,93563.0,0.03035246]
[1767741491755,0.09092,93579.0,93565.0,0.12340034]
[1767741491953,0.09092,93579.0,93567.0,0.03035246]
[1767741492154,0.09092,93579.0,93566.0,0.09304788]
[1767741493961,0.09092,93578.0,93566.0,0.09304788]
[1767741495355,0.01069,93581.0,93566.0,0.09304788]
[1767741495562,0.09092,93578.0,93566.0,0.09304788]
[1767741497752,0.010691,93579.0,93566.0,0.09304788]
[1767741497965,0.09092,93578.0,93566.0,0.09304788]
[1767741500254,0.010691,93579.0,93566.0,0.09304788]
[1767741500460,0.09092,93578.0,93566.0,0.09304788]
[1767741501460,0.010691,93577.0,93566.0,0.09304788]
[1767741501661,0.010691,93577.0,93563.0,0.03035246]
[1767741502660,0.01069,93583.0,93566.0,0.03035246]
[1767741502865,0.09092,93582.0,93566.0,0.03035246]
[1767741503068,0.01069,93583.0,93566.0,0.03035246]
[1767741503272,0.09092,93582.0,93566.0,0.03035246]
[1767741503463,0.09092,93582.0,93565.0,0.09304788]
[1767741503464,0.01069,93579.0,93565.0,0.09304788]
[1767741503766,0.010691,93577.0,93563.0,0.03035246]
[1767741504276,0.010691,93574.0,93561.0,0.09304788]
[1767741504560,0.010691,93574.0,93558.0,0.03035246]
[1767741504958,0.010691,93574.0,93559.0,0.03035246]
[1767741505756,0.010691,93574.0,93558.0,0.09304788]
[1767741505961,0.010691,93574.0,93558.0,0.12340034]
[1767741506663,0.010692,93566.0,93553.0,0.09304788]
[1767741507066,0.12294362,93572.0,93553.0,0.09304788]
[1767741507363,0.010693,93560.0,93546.0,0.03035246]
[1767741507665,0.03202362,93564.0,93546.0,0.04104646]
[1767741507666,0.04271562,93564.0,93546.0,0.04104646]
[1767741507866,0.010692,93564.0,93546.0,0.04104646]
[1767741508061,0.04271562,93567.0,93548.0,0.010694]
[1767741508266,0.13015935,93579.0,93560.0,0.03035246]
[1767741508455,0.13015935,93579.0,93542.0,0.010695]
[1767741508456,0.03202362,93572.0,93552.0,0.13409334]
[1767741508656,0.03202362,93561.0,93541.0,0.12127246]
[1767741508862,0.03202362,93560.0,93544.0,0.010694]
[1767741509369,0.09813573,93561.0,93544.0,0.010694]
[1767741509770,0.03202362,93563.0,93543.0,0.03035246]
[1767741509971,0.04271562,93563.0,93545.0,0.010694]
[1767741510267,0.04271562,93563.0,93541.0,0.09092]
[1767741510268,0.03202362,93574.0,93552.0,0.09304788]
[1767741510470,0.03202362,93572.0,93552.0,0.03035246]
[1767741510665,0.19974673,93573.0,93548.0,0.03035246]
[1767741510666,0.010692,93563.0,93548.0,0.03035246]
[1767741510970,0.101612,93563.0,93545.0,0.03035246]
[1767741511272,0.09092,93563.0,93547.0,0.03035246]
[1767741511660,0.09092,93563.0,93548.0,0.02999496]
[1767741511865,0.010692,93565.0,93548.0,0.02999496]
[1767741512072,0.101612,93565.0,93548.0,0.02999496]
[1767741512274,0.010692,93562.0,93548.0,0.02999496]
[1767741512673,0.010692,93562.0,93547.0,0.0920582]
[1767741513263,0.09092,93564.0,93547.0,0.02999496]
[1767741513662,0.02937534,93566.0,93547.0,0.02999496]
[1767741513868,0.09092,93565.0,93547.0,0.02999496]
[1767741514273,0.02937534,93560.0,93543.0,0.010695]
[1767741514666,0.010693,93561.0,93543.0,0.010695]
[1767741514974,0.09331183,93563.0,93546.0,0.010694]
[1767741516777,0.02937534,93562.0,93543.0,0.02999496]
[1767741517275,0.02937534,93559.0,93541.0,0.09092]
[1767741517475,0.09331183,93560.0,93542.0,0.02999496]
[1767741517676,0.12268717,93560.0,93541.0,0.09092]
[1767741518280,0.04006834,93557.0,93541.0,0.09092]
[1767741519079,0.010693,93557.0,93541.0,0.09092]
[1767741519965,0.02937534,93558.0,93541.0,0.09092]
[1767741520169,0.02937534,93558.0,93536.0,0.09535551]
[1767741520170,0.02937534,93553.0,93536.0,0.09535551]
[1767741520370,0.02937534,93553.0,93528.0,0.13445735]
[1767741520371,0.02937534,93546.0,93533.0,0.09535551]
[1767741520571,0.02937534,93546.0,93532.0,0.09535551]
[1767741520871,0.02937534,93546.0,93532.0,0.10605151]
[1767741521066,0.02937534,93550.0,93534.0,0.010696]
[1767741521775,0.02937534,93550.0,93532.0,0.09535551]
[1767741522977,0.09331183,93541.0,93531.0,0.09535551]
[1767741523179,0.010694,93545.0,93529.0,0.09535551]
[1767741523680,0.09092,93552.0,93525.0,0.12205316]
[1767741523681,0.02937534,93552.0,93536.0,0.010695]
[1767741523885,0.09092,93551.0,93533.0,0.13274916]
[1767741524082,0.101614,93551.0,93533.0,0.12205316]
[1767741524287,0.010694,93549.0,93533.0,0.12205316]
[1767741524471,0.010694,93548.0,93529.0,0.22810467]
[1767741524783,0.010694,93548.0,93531.0,0.12205316]
[1767741525280,0.09331183,93549.0,93528.0,0.09535551]
[1767741525480,0.010695,93538.0,93527.0,0.09535551]
[1767741525685,0.010696,93535.0,93523.0,0.09092]
[1767741526082,0.04007034,93538.0,93523.0,0.09092]
[1767741526496,0.02937534,93538.0,93523.0,0.101617]
[1767741526786,0.02937534,93539.0,93523.0,0.101617]
[1767741526988,0.02937534,93539.0,93523.0,0.09092]
[1767741527581,0.04007034,93539.0,93523.0,0.09092]
[1767741527982,0.05881477,93539.0,93523.0,0.09092]
[1767741528180,0.01874443,93539.0,93523.0,0.09092]
[1767741528478,0.010695,93540.0,93524.0,0.0920582]
[1767741528979,0.0296553,93540.0,93524.0,0.0920582]
[1767741529283,0.04007034,93540.0,93523.0,0.09092]
[1767741529587,0.010695,93538.0,93523.0,0.09092]
[1767741530191,0.010695,93538.0,93523.0,0.1829782]
[1767741531187,0.04007034,93538.0,93520.0,0.010697]
[1767741532992,0.02937534,93538.0,93520.0,0.010697]
[1767741533189,0.01876398,93540.0,93527.0,0.12205316]
[1767741533383,0.04007034,93539.0,93521.0,0.0920582]
[1767741533584,0.09096,93541.0,93528.0,0.12205316]
[1767741533787,0.09096,93541.0,93528.0,0.0920582]
[1767741534291,0.10987189,93541.0,93528.0,0.0920582]
[1767741535089,0.01891189,93541.0,93529.0,0.12205316]
[1767741535284,0.09096,93542.0,93533.0,0.0920582]
[1767741535692,0.02937534,93553.0,93535.0,0.12205316]
[1767741535886,0.09096,93553.0,93539.0,0.0920582]
[1767741536388,0.010694,93552.0,93539.0,0.0920582]
[1767741537093,0.101653,93553.0,93539.0,0.0920582]
[1767741537290,0.02982364,93553.0,93539.0,0.0920582]
[1767741537487,0.09096,93552.0,93539.0,0.0920582]
[1767741540384,0.01913064,93553.0,93539.0,0.0920582]
[1767741540587,0.09096,93553.0,93543.0,0.010695]
[1767741540791,0.02773807,93561.0,93545.0,0.010694]
[1767741541090,0.12364929,93578.0,93555.0,0.02850868]
[1767741541284,0.101652,93568.0,93556.0,0.09487369]
[1767741541587,0.010692,93567.0,93551.0,0.09435774]
[1767741541891,0.02053756,93569.0,93552.0,0.12305654]
[1767741542094,0.09096,93568.0,93554.0,0.09435774]
[1767741544090,0.02053756,93569.0,93554.0,0.09435774]
[1767741544597,0.03122956,93569.0,93551.0,0.010694]
[1767741545200,0.02053756,93569.0,93549.0,0.12305654]
[1767741545399,0.09096,93580.0,93567.0,0.09435774]
[1767741545605,0.1099256,93580.0,93567.0,0.09435774]
[1767741546193,0.1099256,93580.0,93564.0,0.09435774]
[1767741548301,0.1099256,93580.0,93556.0,0.09096]
[1767741548302,0.0189656,93580.0,93569.0,0.09435774]
[1767741548602,0.09092,93583.0,93570.0,0.09435774]
[1767741549711,0.10923214,93583.0,93570.0,0.09435774]
[1767741553008,0.10923214,93583.0,93570.0,0.10504874]
[1767741553211,0.02745316,93598.0,93578.0,0.09435774]
[1767741553406,0.09092,93597.0,93586.0,0.09435774]
[1767741553602,0.010688,93598.0,93586.0,0.09435774]
[1767741554009,0.010688,93598.0,93580.0,0.13374654]
[1767741554215,0.18074803,93600.0,93580.0,0.13374654]
[1767741554413,0.02117039,93599.0,93580.0,0.13374654]
[1767741554626,0.00213679,93599.0,93580.0,0.13374654]
[1767741554919,0.00213679,93599.0,93584.0,0.01069]
[1767741555815,0.02064029,93599.0,93586.0,0.12305654]
[1767741556120,0.08982803,93610.0,93588.0,0.12305654]
[1767741556121,0.09092,93601.0,93588.0,0.12305654]
[1767741556419,0.09092,93601.0,93589.0,0.09435774]
[1767741556914,0.10934265,93601.0,93589.0,0.10504674]
[1767741557117,0.01512859,93601.0,93593.0,0.09435774]
[1767741557322,0.09092,93609.0,93594.0,0.09435774]
[1767741557511,0.10983532,93609.0,93594.0,0.09435774]
[1767741558222,0.10983532,93609.0,93596.0,0.09435774]
[1767741560518,0.10983532,93609.0,93597.0,0.010688]
[1767741563118,0.10983532,93609.0,93596.0,0.09435774]
[1767741564224,0.10983532,93609.0,93597.0,0.010688]
[1767741564616,0.10983532,93609.0,93596.0,0.09435774]
[1767741568331,0.10983532,93609.0,93596.0,0.10504574]
[1767741568530,0.10983532,93609.0,93596.0,0.09435774]
[1767741569832,0.10983532,93609.0,93591.0,0.12305654]
[1767741570028,0.11728119,93601.0,93583.0,0.10504774]
[1767741570531,0.08982803,93601.0,93585.0,0.10504774]
[1767741570724,0.08982803,93601.0,93555.0,8.3e-07]
[1767741570725,0.02745316,93576.0,93558.0,0.09435774]
[1767741571028,0.08982803,93579.0,93560.0,0.09435774]
[1767741571328,0.08982803,93570.0,93560.0,0.09435774]
[1767741571526,0.17965606,93570.0,93551.0,0.02478701]
[1767741571728,0.08982803,93563.0,93548.0,0.09088]
[1767741571930,0.08982803,93560.0,93548.0,0.09088]
[1767741574931,0.010693,93562.0,93548.0,0.09088]
[1767741575243,0.08982803,93560.0,93548.0,0.09088]
[1767741577437,0.010692,93566.0,93551.0,0.02478701]
[1767741577633,0.010692,93566.0,93552.0,0.02478701]
[1767741578327,0.010692,93566.0,93551.0,0.09576519]
[1767741578734,0.08982803,93561.0,93548.0,0.11566701]
[1767741578939,0.010692,93564.0,93548.0,0.11566701]
[1767741579239,0.010692,93564.0,93549.0,0.02478701]
[1767741580231,0.08982803,93560.0,93548.0,0.09088]
[1767741581235,0.08982803,93560.0,93548.0,0.11566701]
[1767741581432,0.08982803,93560.0,93549.0,0.02478701]
[1767741581624,0.13383791,93568.0,93549.0,0.02478701]
[1767741581831,0.0265465,93585.0,93565.0,0.010692]
[1767741582030,0.09092,93584.0,93567.0,0.010692]
[1767741582231,0.08982803,93580.0,93567.0,0.010692]
[1767741582437,0.010689,93589.0,93563.0,0.1205522]
[1767741582438,0.09092,93587.0,93572.0,0.02478701]
[1767741582643,0.09092,93588.0,93573.0,0.1205522]
[1767741583132,0.101609,93588.0,93568.0,0.010692]
[1767741583638,0.01069,93586.0,93566.0,0.09576519]
[1767741584731,0.01069,93584.0,93566.0,0.09576519]
[1767741584923,0.01069,93579.0,93560.0,0.02478701]